Cogmind - Beta 14 @@@ ROGUE MODE // 2024.09.10 @ 03:26:04 Player: Null_error Result: Destroyed by G-47 Trooper with Particle Gun Performance ------------- Evolutions (2) 1000 Regions Visited (6) 1200 Robots Destroyed (32) 160 Value Destroyed (977) 977 Prototype IDs (24) 480 Alien Tech Used (0) 0 Bonus (300) 300 TOTAL SCORE: 4117 Bonus ------- Aligned with FarCom 300 Cogmind --------- Core Integrity 0/550 Matter 260/300 Energy 69/100 System Corruption 0% Temperature Cool (9) Movement Treading (160) Location -8/Storage Parts ------- > --- POWER (1) -------- (None) > --- PROPULSION (4) --- Improved Treads Improved Treads Improved Treads > --- UTILITY (4) ------ Structural Scanner Sensor Array > --- WEAPON (2) ------- Heavy Mace > --- INVENTORY (5) ---- Particle Cannon Advanced Beam Cannon Advanced Beam Cannon Mining Laser Peak State ------------ > --- POWER ------------ Light Ion Engine > --- PROPULSION ------- Armored Treads Flight Unit Flight Unit Flight Unit > --- UTILITY ---------- Small Storage Unit Structural Scanner Propulsion Shielding Light Armor Plating > --- WEAPON ----------- Advanced Beam Cannon Guided Plasma Cannon > --- INVENTORY -------- Light Ion Engine Improved Heat Sink High-capacity Battery Sensor Array Particle Cannon Advanced Beam Cannon Mining Laser [Rating: 23] Favorites ----------- Power Light Ion Engine Engine Light Ion Engine Propulsion Flight Unit Treads Armored Treads Wheel Wheel Hover Unit Hover Unit Flight Unit Flight Unit Utility Small Storage Unit Device Structural Scanner Storage Small Storage Unit Processor Signal Interpreter Protection Propulsion Shielding Weapon Makeshift Shrapnel Gun Energy Gun Field Laser Energy Cannon Advanced Beam Cannon Ballistic Gun Makeshift Shrapnel Gun Launcher Grenade Launcher Special Weapon Mining Laser Impact Weapon Heavy Mace Build | -11 -10 -10 -10 -9 -8 -8 ------- Run | Yrd Mat Min Exi Min Mat Sto Slots Evolved 4 | . . . . . 4 . Power . | . . . . . . . Propulsion 2 | . . . . . 2 . Utility 2 | . . . . . 2 . Weapon . | . . . . . . . Parts Attached 75 | 7 22 1 . 3 14 28 Power 10 | 2 4 . . . 1 3 Engine 10 | 2 4 . . . 1 3 Core . | . . . . . . . Reactor . | . . . . . . . Propulsion 26 | 2 10 . . 1 3 10 Treads 8 | . . . . . 1 7 Leg . | . . . . . . . Wheel 3 | 2 . . . 1 . . Hover 7 | . 7 . . . . . Flight 8 | . 3 . . . 2 3 Utility 13 | 1 1 . . 1 2 8 Device 8 | . . . . 1 1 6 Storage 1 | 1 . . . . . . Processor 1 | . 1 . . . . . Hackware . | . . . . . . . Protection 3 | . . . . . 1 2 Artifact . | . . . . . . . Weapon 26 | 2 7 1 . 1 8 7 Energy Gun 8 | 2 4 . . . 2 . Energy Cannon 8 | . 2 1 . . . 5 Ballistic Gun 4 | . . . . 1 2 1 Ballistic Cannon . | . . . . . . . Launcher 1 | . 1 . . . . . Special Weapon 4 | . . . . . 4 . Impact Weapon 1 | . . . . . . 1 Slashing Weapon . | . . . . . . . Piercing Weapon . | . . . . . . . Special Melee Weapon . | . . . . . . . Unidentified Prototypes 1 | . . . . . . 1 Parts Lost 20 | . 4 . . . . 16 Power 4 | . 2 . . . . 2 Propulsion 7 | . 1 . . . . 6 Utility 6 | . . . . . . 6 Weapon 3 | . 1 . . . . 2 Highest Loss Streak 14 | . 1 . . . . 14 To Critical Strikes . | . . . . . . . Average Slot Usage (%) 80 | . 92 72 71 83 96 63 Engine 8 | . 12 14 14 14 9 4 Treads 4 | . . . . . 8 5 Wheel 1 | . 5 . . 3 . . Hover 4 | . 19 . . . . . Flight 17 | . 3 28 28 24 26 14 Device 10 | . . . . 2 17 14 Storage 9 | . 14 14 14 14 9 5 Processor 4 | . 13 14 14 11 . . Protection 4 | . . . . . 6 6 Energy Gun 7 | . 19 . . . 7 3 Energy Cannon 2 | . 2 1 . . . 5 Ballistic Gun 3 | . . . . 12 6 2 Peak Build Rating 23 | 6 7 6 6 10 22 23 Average Rating 12 | 4 6 5 6 9 19 12 On Entrance 7 | . 6 5 6 6 10 19 Naked Turns . | . . . . . . . Heaviest Build 27 | 14 15 11 8 11 20 27 Greatest Support 69 | 26 26 8 8 10 20 69 Greatest Overweight (x) 3 | . 3 1 . 1 . 2 Average Overweight (x) . | . . . . . . . Largest Inventory Capacity 8 | 8 8 8 8 8 8 8 Average Capacity 7 | 7 8 8 8 8 8 6 Most Carried 8 | 4 8 8 8 8 7 8 Average Carried 6 | 2 7 7 7 8 5 6 Final Capacity 8 | 8 8 8 8 8 8 5 Final Carried 8 | 4 8 8 8 8 7 4 Class Distribution -------------------- 46% | Mutant 25% | Scavenger-Skirmisher 16% | Scavenger-Mutant 6% | Scout Dominant Class ---------------- Mutant | -10/Materials Mutant | -10/Mines Mutant | -10/Exiles Mutant | -9/Mines Scavenger-Skirmisher | -8/Materials Scavenger-Mutant | -8/Storage Resources | -11 -10 -10 -10 -9 -8 -8 ----------- Run | Yrd Mat Min Exi Min Mat Sto Matter Collected 962 | 154 326 10 . 57 51 364 Remotely 50 | . . . . . . 50 Salvage Created 1216 | . 587 26 . 13 51 539 Parts 62 | . 30 4 . . 5 23 Haulers Intercepted . | . . . . . . . Recyclers Shooed 4 | . 2 . . 1 . 1 Parts Field Recycled . | . . . . . . . Retrieved Matter . | . . . . . . . Parts Self-Destructed . | . . . . . . . Prevented . | . . . . . . . Kills | -11 -10 -10 -10 -9 -8 -8 ------- Run | Yrd Mat Min Exi Min Mat Sto Combat Hostiles Destroyed 24 | . 10 . . 2 1 11 Guns 12 | . 4 . . 2 1 5 Cannons 6 | . 3 . . . . 3 AOE 1 | . 1 . . . . . Classes Destroyed 12 | . 8 1 . 1 1 1 Worker 1 | . 1 . . . . . Builder 1 | . 1 . . . . . Tunneler 1 | . . 1 . . . . Recycler 1 | . 1 . . . . . Mechanic 1 | . 1 . . . . . Operator 1 | . 1 . . . . . Watcher 4 | . 3 . . . . 1 Swarmer 3 | . 3 . . . . . Grunt 13 | . 7 . . . . 6 Sentry 5 | . . . . . 1 4 Hunter 1 | . . . . . . 1 Assembled 2 | . . . . 2 . . Best Kill Streak 4 | . 4 1 . 1 1 3 Combat Bots Only 3 | . 3 . . 1 1 3 Max Kills in Single Turn 1 | . 1 1 . 1 1 1 Gunslinging . | . . . . . . . Exploded 1 | . 1 . . . . . Melee . | . . . . . . . Uniques/NPCs Destroyed . | . . . . . . . Combat | -11 -10 -10 -10 -9 -8 -8 -------- Run | Yrd Mat Min Exi Min Mat Sto Hostile Shots Fired 254 | . 65 2 . 3 7 177 Missed 65 | . 14 1 . 3 3 44 Damage Taken 2874 | . 596 8 . . 62 2208 Core 739 | . 174 8 . . 30 527 Absorbed by Shields . | . . . . . . . Redirected to Shielding 51 | . . . . . . 51 Regen/Repaired (Parts) 35 | . . . . . . 35 Core Remaining (%) 63 | 100 . . . 27 . . Volleys Fired 134 | . 75 5 . 6 10 38 Largest 2 | . 2 1 . 1 2 2 Hottest 163 | . 120 60 . 24 163 120 Shots Fired 197 | . 115 5 . 6 17 54 Gun 156 | . 108 . . 6 10 32 Cannon 33 | . 6 5 . . . 22 Launcher 1 | . 1 . . . . . Special 7 | . . . . . 7 . Kinetic 25 | . . . . 6 3 16 Thermal 171 | . 114 5 . . 14 38 Explosive 1 | . 1 . . . . . Electromagnetic . | . . . . . . . Robot Hit Streak 12 | . 7 9 . 3 7 12 Robot Miss Streak 7 | . 4 2 . 3 . 7 Penetration Max . | . . . . . . . Secondary Targets . | . . . . . . . Shots Hit Robots 128 | . 70 3 . 4 2 49 Core Hits 53 | . 27 1 . 6 2 17 Critical Kills . | . . . . . . . Critical Parts Destroyed . | . . . . . . . Critical Strikes 9 | . 8 . . . . 1 Burn 9 | . 8 . . . . 1 Melee Attacks 11 | . . . . . . 11 Impact 11 | . . . . . . 11 Slashing . | . . . . . . . Piercing . | . . . . . . . Sneak Attacks . | . . . . . . . Combat Hostiles . | . . . . . . . Follow-up Attacks . | . . . . . . . Damage Inflicted 2385 | . 948 53 . 89 46 1249 Guns 1354 | . 809 . . 88 46 411 Cannons 697 | . 71 53 . . . 573 Explosions 42 | . 42 . . . . . Melee 254 | . . . . . . 254 Ramming 38 | . 26 . . 1 . 11 Kinetic 318 | . . . . 88 28 202 Thermal 1733 | . 880 53 . . 18 782 Explosive 42 | . 42 . . . . . Electromagnetic . | . . . . . . . Impact 254 | . . . . . . 254 Slashing . | . . . . . . . Piercing . | . . . . . . . Highest Corruption . | . . . . . . . Average Corruption . | . . . . . . . Corruption Purged . | . . . . . . . Corruption Blocked . | . . . . . . . Overload Shots . | . . . . . . . Overflow Damage 48 | . . . . . . 48 Projectiles 8 | . . . . . . 8 Explosions . | . . . . . . . Melee 40 | . . . . . . 40 Knockbacks . | . . . . . . . Impact . | . . . . . . . Kinetic . | . . . . . . . Secondary . | . . . . . . . Self-Inflicted Damage 54 | . 49 . . . . 5 Shots 1 | . 1 . . . . . Rammed 10 | . 7 . . 1 . 2 Targets Rammed 10 | . 7 . . 1 . 2 Kicked . | . . . . . . . Crushed . | . . . . . . . Highest Temperature 519 | . 519 120 . . 120 311 Average Temperature 122 | . 139 61 . . 47 107 Received Heat Transfer 1296 | . 261 . . . 27 1008 Effects 5 | . 5 . . . . . Shutdowns 1 | . 1 . . . . . Energy Bleed 1 | . 1 . . . . . Interference 1 | . 1 . . . . . Damage (major) 2 | . 2 . . . . . Siege Activations . | . . . . . . . Robots Corrupted 1 | . . . . . . 1 Combat Hostiles 1 | . . . . . . 1 Parts Fried . | . . . . . . . Impact Corruptions 2 | . . . . . . 2 Robots Melted 4 | . 2 . . . . 2 Combat Hostiles 4 | . 2 . . . . 2 Parts Melted 8 | . 3 1 . . . 4 Heat Transferred 4987 | . 3145 111 . . 37 1694 Parts Sabotaged . | . . . . . . . Parts Stolen . | . . . . . . . Parts Stripped . | . . . . . . . Power Chain Reactions . | . . . . . . . Alert | -11 -10 -10 -10 -9 -8 -8 ------- Run | Yrd Mat Min Exi Min Mat Sto Peak Influence 246 | . 246 123 . 15 48 159 Initial 58 | . . 58 . . 5 20 Average 54 | . 114 100 . 3 15 56 Maximum Alert Level 1 | . 1 . . . . . Low Security (%) 97 | 100 87 100 . 100 100 100 Level 1 2 | . 12 . . . . . Level 2 . | . . . . . . . Level 3 . | . . . . . . . Level 4 . | . . . . . . . Level 5 . | . . . . . . . High Security . | . . . . . . . Max Security . | . . . . . . . Squads Dispatched 8 | . 5 . . . 1 2 Investigation 3 | . 1 . . . 1 1 Extermination . | . . . . . . . Reinforcement 4 | . 4 . . . . . Assault 1 | . . . . . . 1 Garrison . | . . . . . . . Intercept . | . . . . . . . Searches Triggered . | . . . . . . . Construction Impeded . | . . . . . . . Haulers Reinforced . | . . . . . . . Active Scanning Responses . | . . . . . . . Cargo Convoy Interrupts . | . . . . . . . Stealth | -11 -10 -10 -10 -9 -8 -8 --------- Run | Yrd Mat Min Exi Min Mat Sto Distress Signals 4 | . 1 . . . . 3 Communications Jammed . | . . . . . . . Distress Signals . | . . . . . . . Times Spotted 64 | . 24 3 . 2 2 33 Peak Tracking Total 10 | . 4 3 . 1 1 10 Tactical Retreats 12 | . 5 1 . . 1 5 Traps | -11 -10 -10 -10 -9 -8 -8 ------- Run | Yrd Mat Min Exi Min Mat Sto Traps Triggered 2 | . 1 . . . . 1 Indirectly . | . . . . . . . Trap Hack Attempts . | . . . . . . . Triggered . | . . . . . . . Disarmed . | . . . . . . . Reprogrammed . | . . . . . . . Reused . | . . . . . . . Traps Extracted . | . . . . . . . Installed . | . . . . . . . Triggered . | . . . . . . . Machines | -11 -10 -10 -10 -9 -8 -8 ---------- Run | Yrd Mat Min Exi Min Mat Sto Machines Disabled 1 | . . . . . . 1 Max in Single Turn 1 | . . . . . . 1 Garrison Access 1 | . . . . . . 1 Machines Repaired . | . . . . . . . Machines Dismantled . | . . . . . . . Machines Sabotaged . | . . . . . . . Overloaded Fab Kills . | . . . . . . . Hacking | -11 -10 -10 -10 -9 -8 -8 --------- Run | Yrd Mat Min Exi Min Mat Sto Machines Accessed 9 | . 2 . 2 . 1 4 Terminals 6 | . 2 . . . 1 3 Fabricators . | . . . . . . . Repair Stations 1 | . . . . . . 1 Recycling Units . | . . . . . . . Scanalyzers . | . . . . . . . Garrison Access . | . . . . . . . Total Hacks 40 | . 3 . 24 . 3 10 Successful 33 | . 1 . 24 . 2 6 Failed 7 | . 2 . . . 1 4 Catastrophic 4 | . 1 . . . 1 2 Database Lockouts . | . . . . . . . Manual 9 | . 1 . 1 . 3 4 Terminals 12 | . 3 . . . 3 6 Fabricators . | . . . . . . . Repair Stations 4 | . . . . . . 4 Recycling Units . | . . . . . . . Scanalyzers . | . . . . . . . Garrison Access . | . . . . . . . Terminal Hacks 29 | . 1 . 24 . 2 2 Record 24 | . . . 23 . . 1 Robot Analysis 2 | . . . . . 2 . Open Door 1 | . . . . . . 1 Alert Level 1 | . 1 . . . . . Derelict Proto ID Bank 1 | . . . 1 . . . Fabricator Hacks . | . . . . . . . Repair Station Hacks 2 | . . . . . . 2 Scan Component 1 | . . . . . . 1 Repair 1 | . . . . . . 1 Recycling Unit Hacks . | . . . . . . . Scanalyzer . | . . . . . . . Garrison Access Hacks . | . . . . . . . Unauthorized Hacks 2 | . . . . . . 2 Terminals 2 | . . . . . . 2 Skim 2 | . . . . . . 2 Fabricators . | . . . . . . . Repair Stations . | . . . . . . . Recycling Units . | . . . . . . . Scanalyzers . | . . . . . . . Garrison Access . | . . . . . . . Data Cores Recovered . | . . . . . . . Used . | . . . . . . . Hacking Detections 4 | . 1 . . . 1 2 Full Trace Events 3 | . . . . . 1 2 Feedback Events . | . . . . . . . Feedback Blocked . | . . . . . . . Robot Schematics Acquired . | . . . . . . . Robots Built . | . . . . . . . Authchips . | . . . . . . . Time . | . . . . . . . Total Robot Build Rating . | . . . . . . . Part Schematics Acquired . | . . . . . . . Parts Built . | . . . . . . . Authchips . | . . . . . . . Time . | . . . . . . . Total Part Build Rating . | . . . . . . . Parts Repaired 1 | . . . . . . 1 Time 26 | . . . . . . 26 Parts Recycled . | . . . . . . . Recycled Matter . | . . . . . . . Retrieved Matter . | . . . . . . . Retrieved Components . | . . . . . . . Parts Scanalyzed . | . . . . . . . Part Schematics Acquired . | . . . . . . . Parts Damaged . | . . . . . . . Bothacking | -11 -10 -10 -10 -9 -8 -8 ------------ Run | Yrd Mat Min Exi Min Mat Sto Used RIF Installer . | . . . . . . . Robots Hacked . | . . . . . . . Non-combat . | . . . . . . . Combat . | . . . . . . . Robot Hacks Applied . | . . . . . . . Relay Couplers Released 1 | . . . . . . 1 Machine Destruction 1 | . . . . . . 1 Fabnet Peak Effective % . | . . . . . . . Robots Rewired . | . . . . . . . Allies Hacked . | . . . . . . . Hacks Repelled . | . . . . . . . Allies | -11 -10 -10 -10 -9 -8 -8 -------- Run | Yrd Mat Min Exi Min Mat Sto Total Allies . | . . . . . . . Largest Group . | . . . . . . . Highest-Rated Group . | . . . . . . . Highest-Rated Ally . | . . . . . . . Total Orders . | . . . . . . . Ally Attacks . | . . . . . . . Total Damage . | . . . . . . . Kills . | . . . . . . . Allies Corrupted . | . . . . . . . Allies Melted . | . . . . . . . Intel | -11 -10 -10 -10 -9 -8 -8 ------- Run | Yrd Mat Min Exi Min Mat Sto Robot Analysis Total 2 | . . . . . 2 . Derelict Logs Recovered . | . . . . . . . Drone Launches . | . . . . . . . Drone Recoveries . | . . . . . . . Exploration | -11 -10 -10 -10 -9 -8 -8 ------------- Run | Yrd Mat Min Exi Min Mat Sto Turns Passed 4156 | 46 884 93 160 325 1137 1511 Spaces Moved 2748 | 38 676 202 307 307 407 811 Core 330 | 2 . . . . . 328 Treads 709 | . . . . . 393 316 Legs . | . . . . . . . Wheels 223 | 36 107 . . 80 . . Hover 327 | . 327 . . . . . Flight 1159 | . 242 202 307 227 14 167 Fastest Speed 31 | 50 37 37 37 37 39 31 Average Speed 90 | 87 71 38 37 87 165 101 Slowest Speed 280 | 90 280 117 37 117 170 250 Overloaded Moves . | . . . . . . . Propulsion Burnouts . | . . . . . . . Robots Hopped 13 | . 6 4 . . . 3 Cave-ins Triggered . | . . . . . . . Exploration Rate (%) 42 | 4 75 52 62 46 12 44 Regions Visited 6 Branch Regions 4 Pre-discovered Areas 2 | . . 1 1 . . . Known Exits Taken 3 | . 1 1 1 . . . Unknown Exits Taken 3 | 1 . . . 1 1 . Scrap Searched 3 | . . 2 . 1 . . Spaces Dug 8 | . . . . . 7 1 Terrain Destroyed 14 | . 6 . . . 7 1 Melee . | . . . . . . . Projectile 8 | . . . . . 7 1 AOE 6 | . 6 . . . . . Terrain Rammed . | . . . . . . . Walls Destroyed . | . . . . . . . Machines Disabled . | . . . . . . . Actions | -11 -10 -10 -10 -9 -8 -8 --------- Run | Yrd Mat Min Exi Min Mat Sto Total 4167 | 47 954 208 354 355 835 1414 Wait 1157 | . 155 2 42 39 403 516 Move 2717 | 37 663 193 306 306 406 806 Hop 12 | . 6 4 . . . 2 Pick Up 21 | 3 10 1 3 . 1 3 Fast Attach 23 | 6 3 . . 1 2 11 Attach 16 | . 5 1 . . 4 6 Detach 9 | . 4 1 . . 1 3 Swap 37 | 1 14 . . 2 8 12 Drop 20 | . 12 1 3 . . 4 Fire 134 | . 75 5 . 6 10 38 Melee 11 | . . . . . . 11 Ram 9 | . 7 . . 1 . 1 Kick . | . . . . . . . Crush 1 | . . . . . . 1 Escape Stasis . | . . . . . . . Rewire . | . . . . . . . Trap . | . . . . . . . Miscellaneous . | . . . . . . . Route ------- -11/Scrapyard -10/Materials (discovered 3 exits: *Mat x2 / *Min) -10/Mines -10/Exiles -9/Mines -8/Materials -8/Storage History --------- Turn | Location | Event 17 | -11/Scrapyard | Discovered new exit (range 15) 47 | -11/Scrapyard | Entered Materials 340 | -10/Materials | Discovered new exit (range 12) 345 | -10/Materials | Build established: Mutant 678 | -10/Materials | Core integrity fell below 50% 872 | -10/Materials | Discovered new exit (range 15) 877 | -10/Materials | Identified exit to Materials 907 | -10/Materials | Discovered new exit (range 13) 911 | -10/Materials | Identified exit to Mines 931 | -10/Materials | Entered Mines 984 | -10/Mines | Learned location of Storage (-8) 996 | -10/Mines | Met a Derelict bent on vengeance 1022 | -10/Mines | Deemed a non-threat by the Exiles lab entrance 1023 | -10/Mines | Discovered new exit (range 5) 1024 | -10/Mines | Identified exit to Exiles 1024 | -10/Mines | Entered Exiles 1034 | -10/Exiles | Met 8R-AWN 1040 | -10/Exiles | Met EX-HEX 1057 | -10/Exiles | Met EX-DEC 1060 | -10/Exiles | Learned location of Zion (-7) 1069 | -10/Exiles | Met EX-BIN 1073 | -10/Exiles | Aligned with FarCom system 1074 | -10/Exiles | Given EX-Vault access code 1083 | -10/Exiles | Opened EX-Vault 1087 | -10/Exiles | Found Gui. Plasma Cannon 1096 | -10/Exiles | Warned to stay clear of 0b10 Research branches 1101 | -10/Exiles | Exiles lab attacked by MAIN.C 1139 | -10/Exiles | Discovered new exit (range 10) 1141 | -10/Exiles | Identified exit to Mines 1184 | -10/Exiles | Left Exiles lab with Gui. Plasma Cannon 1184 | -10/Exiles | Entered Mines 1220 | -9/Mines | A weapon hastily lodged in a ceiling crevice suddenly fell to the ground 1310 | -9/Mines | Assembled infested the area 1315 | -9/Mines | Assisted by a Guerilla fighting off Assembled 1492 | -9/Mines | Discovered new exit (range 11) 1509 | -9/Mines | Entered Materials 1509 | -8/Materials | Evolved 4 slots: Propulsion x2, Utility x2 1595 | -8/Materials | Discovered new exit (range 16) 1970 | -8/Materials | Build established: Scavenger-Skirmisher 2646 | -8/Materials | Entered Storage 3287 | -8/Storage | Build established: Scavenger-Mutant 3345 | -8/Storage | Repaired Lgt. Ion Engine 3441 | -8/Storage | Core integrity fell below 50% 3533 | -8/Storage | Lost 14 parts (2p5n5u2w) 3689 | -8/Storage | Build established: Mutant 4090 | -8/Storage | Core integrity fell below 20% 4157 | -8/Storage | Destroyed by G-47 Trooper with Particle Gun Last Messages --------------- 03810_ Connecting with Recycling Unit... 03859_ Acquired 40 matter. 03861_ Dropped Adv. Beam Cannon. 03861_ Acquired Hvy. Mace. 04075_ Transfer Shaft disabled. 04079_ Tractor Beam destroyed. 04088_ Slammed into A-02 Transporter. 04088_ A-02 Transporter sends out distress signal. 04089_ W-25 Informer sends out distress signal. 04106_ Acquired Imp. Treads. 04135_ Critical hit (Burn: +37). 04141_ Destroyed Imp. Heat Sink. 04141_ G-47 Trooper system corrupted by crushing effect. 04151_ Destroyed Lgt. Nuclear Core. 04151_ G-47 Trooper system corrupted by crushing effect. 04152_ G-47 Trooper system terminally corrupted. [Achievement: Achiever] Map ----- +----------------------------------------------------+ | | | | | | | | | | | | | | | | | | | | | | | | | | | | | | | ?????????????????????????????????????????????????? | | ?????????????????????????????????????????????????? | | ?????????????????????????????????????????????????? | | ?????????????????????????????????????????????????? | | ??????????????????????????????????????Y??????????? | | ?????????????????????????????????????????????????? | | ????????????????#############????????????????????? | | ?????? ## ###############????????????????????? | | ??????+######+#### ##= ##????????????????????? | | ?????? ##= ##????????????????????? | | ?????? ##@ ###???????????????????? | | ?????????? ##g"###????????????Y??????? | | ????????????????## + Y T##???????????????????? | | ????????????????#### ### ###???????????????????? | | ????????????????#### #########???????????????????? | | ??????????????????## ########????????????????????? | | ??????????????????## ##??????????????????????????? | | ????????????????#### ####### ????????????????????? | | ????????????????####+####### ????????????????????? | | ????????????????## # ????????????????????? | | ????????????????## # ??????????? | | ????????????????## ?###+########??????????? | | ????????????????## + ??????????? | | ???????????????? # ? ## ????????????? | | ???????????????? # ## ?? ??????????? | | ???????????????? # ilg ## """?? ""?????????? | | ???????????????? # l g ##^ """" ""?????????? | | ???????????????? #####+##### """" ""?????????? | | ???????????????? + """" """" ?????? | | ???????????????? ### """" """" ????? | | ???????????????? ### """"" ???? | | ??????????????????## """"" ##???? | | ????????????????#### """"" != ##???? | | ????????????????#### ! ##???? | | ?????????????? ##???? | +----------------------------------------------------+ Best States ------------- Heat Dissipation 45 Energy Generation 12 Energy Capacity 265 Matter Stores 300 Matter Capacity 300 Sight Range 16 Robot Scan Range 14 Terrain Scan Range 16 Terrain Scan Density 10 Armor Coverage 150 Propulsion Shielding 33 Evasion (%) 63 Recoil Reduction 3 Item Schematics ----------------- None Robot Schematics ------------------ None Fabricated ------------ Nothing Alien Tech Used ----------------- None Achievements -------------- Achiever True Hacker Challenges ------------ None Game ------ Seed ChipContainmentChronowheel Manual? 0 Play Time 00:48:43 Cumulative 31.5 hours Start 2024.09.10 @ 02:31:20 End 2024.09.10 @ 03:26:04 Sessions 1 Manual Loads 0 Difficulty Rogue Special Mode None Game No. 37 Rogue 37 Adventurer 0 Explorer 0 Win Type - Total 0 Types 0/0/0/0/0/0/0/0/0 Lore% 18 Gallery% 35 Achievement% 25 Wizard Run 0 Options --------- Layout 2 ASCII 0 Keyboard 1 Movement Numpad Keybinds 0 Fullscreen 2 Font 24/Smallcaps Map View 50x44 Zoom Use 1% Tactical HUD 1 Map Filters NONE Filters LOW_CONTRAST(5,20,15) Steam 1 RUN: 13055282-72f5-4c43-a110-a85694432776